[Event "57th Biel Festival ATO 2024"]
[Site "Biel"]
[Date "2024.07.24"]
[Round "8.37"]
[White "Ademi, Rexhe"]
[Black "Ehrsam, Andreas"]
[Result "0-1"]
[ECO "A06"]
[WhiteElo "1635"]
[BlackElo "1793"]
[Annotator "NA RC"]
[PlyCount "190"]
[EventDate "2024.07.03"]
[EventType "swiss"]
[EventCountry "SUI"]
[SourceTitle "playchess.com"]
[Source "ChessBase"]
[SourceQuality "1"]
[TimeControl "40/5400+30:1800+30"]

1. Nf3 {[%emt 0:00:04]} d5 {[%emt 0:00:18]} 2. c3 {[%emt 0:00:15]} Nf6 {[%emt 0:01:19]} 3. d3 {[%emt 0:00:34]} g6 {[%emt 0:01:10]} 4. Qa4+ {[%emt 0:00:19]} c6 {[%emt 0:00:18]} 5. Bg5 {[%emt 0:00:09]} Bg7 {[%emt 0:00:11]} 6. Nbd2 {[%emt 0:00:36]} O-O {[%emt 0:01:21]} 7. Bf4 {[%emt 0:00:07]} Nbd7 {[%emt 0:00:56]} 8. d4 {[%emt 0:00:36]} Nh5 {[%emt 0:03:00]} 9. Bg3 {[%emt 0:00:15]} Nxg3 {[%emt 0:00:33]} 10. hxg3 {[%emt 0:00:08]} e5 {[%emt 0:00:18]} 11. e3 {[%emt 0:00:16]} e4 {[%emt 0:02:28]} 12. Ng1 {[%emt 0:00:53]} Nf6 {[%emt 0:03:32]} 13. Nh3 {[%emt 0:00:23]} Bg4 {[%emt 0:02:15]} 14. Be2 {[%emt 0:00:17]} b5 {[%emt 0:04:56]} 15. Qd1 {[%emt 0:01:25]} Qd7 {[%emt 0:00:35]} 16. Nb3 {[%emt 0:00:43]} Bxe2 {[%emt 0:04:01]} 17. Qxe2 {[%emt 0:00:13]} Rfe8 {[%emt 0:02:08]} 18. Nc5 {[%emt 0:00:33]} Qc8 {[%emt 0:01:53]} 19. a3 {[%emt 0:00:41]} a5 {[%emt 0:00:18]} 20. b4 {[%emt 0:01:01]} axb4 {[%emt 0:01:36]} 21. cxb4 {[%emt 0:00:11]} Ra7 {[%emt 0:00:18]} 22. Qc2 {[%emt 0:02:23]} Qa8 {[%emt 0:01:15]} 23. Qb2 {[%emt 0:00:33]} Bf8 {[%emt 0:02:25]} 24. Kf1 {[%emt 0:01:02]} Qc8 {[%emt 0:05:51]} 25. Kg1 {[%emt 0:00:40]} Qf5 {[%emt 0:01:09]} 26. Rf1 {[%emt 0:01:41]} Qc8 {[%emt 0:09:01]} 27. Nb3 {[%emt 0:01:30]} Bd6 {[%emt 0:02:22]} 28. Na5 {[%emt 0:00:15]} Qa8 {[%emt 0:01:12]} 29. Qe2 {[%emt 0:00:38]} Bc7 {[%emt 0:00:53]} 30. f4 {[%emt 0:01:13]} Bxa5 {[%emt 0:02:04]} 31. bxa5 {[%emt 0:00:10]} Rxa5 {[%emt 0:00:52]} 32. f5 {[%emt 0:00:22]} Qd8 {[%emt 0:07:10]} 33. Qf2 {[%emt 0:01:27]} Rf8 {[%emt 0:04:21]} 34. Qf4 {[%emt 0:00:52]} Nh5 {[%emt 0:03:00]} 35. Qh6 {[%emt 0:01:08]} Ra7 {[%emt 0:09:13]} 36. Ng5 {[%emt 0:00:27]} f6 {[%emt 0:01:00]} 37. Ne6 {[%emt 0:00:17]} Qe7 {[%emt 0:01:03]} 38. Nxf8 {[%emt 0:00:36]} Qxf8 {[%emt 0:00:06]} 39. Rxh5 {[%emt 0:01:48]} gxh5 {[%emt 0:00:21]} 40. Qxh5 {[%emt 0:00:22]} Rxa3 {[%emt 0:03:27]} 41. Rf4 {[%emt 0:30:15]} Ra7 {[%emt 0:30:47]} 42. g4 {[%emt 0:00:45]} Rg7 {[%emt 0:00:35]} 43. Rf2 {[%emt 0:01:11]} Rg5 {[%emt 0:01:23]} 44. Qh3 {[%emt 0:00:26]} Rg7 {[%emt 0:09:59]} 45. Rc2 {[%emt 0:00:39]} Qd6 {[%emt 0:00:59]} 46. Qh5 {[%emt 0:00:27]} Qd7 {[%emt 0:01:12]} 47. Ra2 {[%emt 0:02:03]} Rf7 {[%emt 0:02:09]} 48. Qh6 {[%emt 0:00:47]} Rf8 {[%emt 0:02:09]} 49. g5 {[%emt 0:02:55]} Qg7 {[%emt 0:00:00]} 50. Ra6 {[%emt 0:00:00]} Qxg5 {[%emt 0:00:00]} 51. Qxg5+ {[%emt 0:00:00]} fxg5 {[%emt 0:00:00]} 52. g4 {[%emt 0:00:00]} Rf6 {[%emt 0:00:00]} 53. Kg2 {[%emt 0:00:00]} Kg7 {[%emt 0:00:00]} 54. Rb6 {[%emt 0:00:00]} Rd6 {[%emt 0:00:00]} 55. Rb7+ {[%emt 0:00:00]} Kh6 {[%emt 0:00:00]} 56. Kf2 {[%emt 0:00:00]} Rd8 {[%emt 0:00:00]} 57. Rc7 {[%emt 0:00:00]} Rd6 {[%emt 0:00:00]} 58. Ke2 {[%emt 0:00:00]} Rf6 {[%emt 0:00:00]} 59. Kd2 {[%emt 0:00:00]} Rd6 {[%emt 0:00:00]} 60. Kc3 {[%emt 0:00:00]} Rf6 {[%emt 0:00:00]} 61. Kb4 {[%emt 0:00:00]} Rf8 {[%emt 0:00:00]} 62. Rxc6+ {[%emt 0:00:00]} Kg7 {[%emt 0:00:00]} 63. Kxb5 {[%emt 0:00:00]} Ra8 {[%emt 0:00:13]} 64. Kc5 {[%emt 0:00:00]} Ra5+ {[%emt 0:00:54]} 65. Kd6 {[%emt 0:00:00]} h5 {[%emt 0:01:07]} 66. gxh5 {[%emt 0:00:00]} Kf6 {[%emt 0:01:21]} 67. Kd7+ {[%emt 0:00:00]} Kxf5 {[%emt 0:00:20]} 68. h6 {[%emt 0:00:00]} Ra7+ {[%emt 0:02:30]} 69. Ke8 {[%emt 0:00:00]} g4 {[%emt 0:02:43]} 70. Kf8 {[%emt 0:00:00]} g3 {[%emt 0:00:20]} 71. Kg8 {[%emt 0:00:00]} g2 {[%emt 0:02:45]} 72. Rc1 {[%emt 0:00:00]} Kg4 {[%emt 0:00:34]} 73. h7 {[%emt 0:00:00]} Kf3 {[%emt 0:00:56]} 74. h8=Q {[%emt 0:00:00]} Ra8+ {[%emt 0:00:14]} 75. Kg7 {[%emt 0:00:00]} Rxh8 {[%emt 0:00:08]} 76. Kxh8 {[%emt 0:00:00]} Kxe3 {[%emt 0:01:12]} 77. Kg7 {[%emt 0:00:00]} Kf3 {[%emt 0:00:09]} 78. Kf6 {[%emt 0:00:00]} e3 {[%emt 0:00:21]} 79. Ke5 {[%emt 0:00:00]} Kf2 {[%emt 0:00:23]} 80. Kf4 {[%emt 0:00:00]} e2 {[%emt 0:00:30]} 81. Ke5 {[%emt 0:00:00]} g1=Q {[%emt 0:00:53]} 82. Rxg1 {[%emt 0:00:00]} Kxg1 {[%emt 0:00:10]} 83. Kxd5 {[%emt 0:00:00]} e1=Q {[%emt 0:00:28]} 84. Kd6 {[%emt 0:00:00]} Qb4+ {[%emt 0:00:13]} 85. Ke5 {[%emt 0:00:00]} Qe7+ {[%emt 0:00:28]} 86. Kd5 {[%emt 0:00:00]} Kf2 {[%emt 0:00:10]} 87. Kc6 {[%emt 0:00:00]} Qe6+ {[%emt 0:00:24]} 88. Kc5 {[%emt 0:00:00]} Qc8+ {[%emt 0:00:08]} 89. Kd6 {[%emt 0:00:00]} Ke3 {[%emt 0:00:50]} 90. d5 {[%emt 0:00:00]} Kd4 {[%emt 0:00:14]} 91. Ke7 {[%emt 0:00:38]} Kxd5 {[%emt 0:00:11]} 92. Kf7 {[%emt 0:00:37]} Qe6+ {[%emt 0:00:33]} 93. Kf8 {[%emt 0:00:15]} Qd7 {[%emt 0:00:16]} 94. Kg8 {[%emt 0:00:16]} Ke6 {[%emt 0:00:17]} 95. Kh8 {[%emt 0:00:09]} Kf6 {[%emt 0:00:19]} 0-1

[Event "57th Biel Festival ATO 2024"]
[Site "Biel"]
[Date "2024.07.24"]
[Round "8.38"]
[White "Fernandez Van Raap, Marcela"]
[Black "Meise, Volker"]
[Result "1-0"]
[ECO "B78"]
[WhiteElo "1613"]
[BlackElo "1772"]
[Annotator "NA RC"]
[PlyCount "71"]
[EventDate "2024.07.03"]
[EventType "swiss"]
[EventCountry "SUI"]
[SourceTitle "playchess.com"]
[Source "ChessBase"]
[SourceQuality "1"]
[TimeControl "40/5400+30:1800+30"]

1. e4 {[%emt 0:00:09]} c5 {[%emt 0:00:07]} 2. Nf3 {[%emt 0:00:09]} d6 {[%emt 0:00:06]} 3. d4 {[%emt 0:00:09]} cxd4 {[%emt 0:00:07]} 4. Nxd4 {[%emt 0:00:06]} Nf6 {[%emt 0:00:12]} 5. Nc3 {[%emt 0:00:07]} g6 {[%emt 0:00:20]} 6. f3 {[%emt 0:02:10]} Bg7 {[%emt 0:00:21]} 7. Be3 {[%emt 0:00:12]} O-O {[%emt 0:00:19]} 8. Bc4 {[%emt 0:01:01]} Nc6 {[%emt 0:00:46]} 9. Qd2 {[%emt 0:00:20]} Bd7 {[%emt 0:01:03]} 10. O-O-O {[%emt 0:00:20]} Rc8 {[%emt 0:00:26]} 11. Bb3 {[%emt 0:00:18]} Ne5 {[%emt 0:01:50]} 12. Bh6 {[%emt 0:12:46]} Nc4 {[%emt 0:08:32]} 13. Bxc4 {[%emt 0:00:47]} Rxc4 {[%emt 0:00:07]} 14. Bxg7 {[%emt 0:00:09]} Kxg7 {[%emt 0:00:16]} 15. g4 {[%emt 0:04:35]} Qa5 {[%emt 0:07:33]} 16. Nb3 {[%emt 0:02:00]} Qa6 {[%emt 0:07:49]} 17. e5 {[%emt 0:05:59]} dxe5 {[%emt 0:03:26]} 18. g5 {[%emt 0:00:16]} Bf5 {[%emt 0:09:19]} 19. gxf6+ {[%emt 0:00:32]} exf6 {[%emt 0:00:11]} 20. Kb1 {[%emt 0:05:53]} Rfc8 {[%emt 0:02:50]} 21. Rc1 {[%emt 0:00:27]} b5 {[%emt 0:04:35]} 22. Rhe1 {[%emt 0:07:52]} Be6 {[%emt 0:14:08]} 23. Re3 {[%emt 0:10:35]} b4 {[%emt 0:04:26]} 24. Ne4 {[%emt 0:00:38]} Rd4 {[%emt 0:04:31]} 25. Rd3 {[%emt 0:03:10]} Rxd3 {[%emt 0:03:11]} 26. cxd3 {[%emt 0:04:37]} Rxc1+ {[%emt 0:00:27]} 27. Nxc1 {[%emt 0:00:07]} Qb6 {[%emt 0:04:20]} 28. Qf2 {[%emt 0:05:47]} Qxf2 {[%emt 0:01:12]} 29. Nxf2 {[%emt 0:00:11]} Bd5 {[%emt 0:00:52]} 30. Ne4 {[%emt 0:06:21]} f5 {[%emt 0:00:29]} 31. Nd2 {[%emt 0:00:08]} Kf6 {[%emt 0:00:25]} 32. Kc2 {[%emt 0:01:30]} Kg5 {[%emt 0:00:40]} 33. Kd1 {[%emt 0:00:41]} Kh4 {[%emt 0:00:50]} 34. Ke2 {[%emt 0:00:25]} Kh3 {[%emt 0:01:04]} 35. Nf1 {[%emt 0:01:30]} Kg2 {[%emt 0:01:05]} 36. Ne3+ {[%emt 0:00:32]} 1-0

[Event "57th Biel Festival ATO 2024"]
[Site "Biel"]
[Date "2024.07.24"]
[Round "8.39"]
[White "Speerli, Maria"]
[Black "Loeffler, Helmut"]
[Result "1/2-1/2"]
[ECO "C10"]
[WhiteElo "1540"]
[BlackElo "1745"]
[Annotator "NA RC"]
[PlyCount "61"]
[EventDate "2024.07.03"]
[EventType "swiss"]
[EventCountry "SUI"]
[SourceTitle "playchess.com"]
[Source "ChessBase"]
[SourceQuality "1"]
[TimeControl "40/5400+30:1800+30"]

1. d4 {[%emt 0:00:13]} d5 {[%emt 0:00:10]} 2. Nc3 {[%emt 0:00:24]} e6 {[%emt 0:00:16]} 3. e4 {[%emt 0:00:12]} dxe4 {[%emt 0:01:21]} 4. Nxe4 {[%emt 0:01:50]} Nf6 {[%emt 0:00:20]} 5. Nxf6+ {[%emt 0:02:51]} Qxf6 {[%emt 0:00:50]} 6. Nf3 {[%emt 0:00:57]} h6 {[%emt 0:01:40]} 7. Bd3 {[%emt 0:04:05]} Bd6 {[%emt 0:02:12]} 8. O-O {[%emt 0:02:15]} Nd7 {[%emt 0:01:59]} 9. Re1 {[%emt 0:02:15]} O-O {[%emt 0:01:11]} 10. c3 {[%emt 0:01:26]} Re8 {[%emt 0:02:43]} 11. Bd2 {[%emt 0:07:50]} Nf8 {[%emt 0:02:43]} 12. Qc2 {[%emt 0:03:43]} Bd7 {[%emt 0:02:22]} 13. Rad1 {[%emt 0:04:56]} Rac8 {[%emt 0:04:26]} 14. Be3 {[%emt 0:03:11]} c5 {[%emt 0:08:10]} 15. dxc5 {[%emt 0:02:13]} Bxc5 {[%emt 0:00:27]} 16. Bxc5 {[%emt 0:00:18]} Rxc5 {[%emt 0:00:31]} 17. Be4 {[%emt 0:10:05]} b6 {[%emt 0:04:15]} 18. Qb1 {[%emt 0:07:57]} Bb5 {[%emt 0:09:50]} 19. Bd3 {[%emt 0:02:34]} Bxd3 {[%emt 0:03:18]} 20. Qxd3 {[%emt 0:01:27]} Ng6 {[%emt 0:02:48]} 21. Qd7 {[%emt 0:03:40]} Re7 {[%emt 0:02:00]} 22. Qd6 {[%emt 0:04:48]} Rcc7 {[%emt 0:03:59]} 23. h3 {[%emt 0:09:48]} Nf4 {[%emt 0:04:57]} 24. Qd4 {[%emt 0:02:40]} Nxh3+ {[%emt 0:09:40]} 25. gxh3 {[%emt 0:01:30]} Qxf3 {[%emt 0:00:22]} 26. Rd3 {[%emt 0:00:22]} Qf6 {[%emt 0:08:59]} 27. Qxf6 {[%emt 0:01:12]} gxf6 {[%emt 0:00:02]} 28. Ree3 {[%emt 0:00:07]} Rc5 {[%emt 0:01:21]} 29. h4 {[%emt 0:00:23]} Re8 {[%emt 0:03:44]} 30. Kg2 {[%emt 0:02:14]} a5 {[%emt 0:01:20]} 31. Kh2 {[%emt 0:01:18]} 1/2-1/2

[Event "57th Biel Festival ATO 2024"]
[Site "Biel"]
[Date "2024.07.24"]
[Round "8.40"]
[White "Kim Rian B"]
[Black "Boyer, Jean-Francois"]
[Result "0-1"]
[ECO "C56"]
[WhiteElo "1592"]
[BlackElo "1742"]
[Annotator "NA RC"]
[PlyCount "40"]
[EventDate "2024.07.03"]
[EventType "swiss"]
[EventCountry "SUI"]
[SourceTitle "playchess.com"]
[Source "ChessBase"]
[SourceQuality "1"]
[TimeControl "40/5400+30:1800+30"]

1. e4 {[%emt 0:00:27]} e5 {[%emt 0:00:14]} 2. Nf3 {[%emt 0:00:10]} Nc6 {[%emt 0:00:13]} 3. d4 {[%emt 0:00:11]} exd4 {[%emt 0:00:40]} 4. Bc4 {[%emt 0:00:12]} Nf6 {[%emt 0:01:38]} 5. e5 {[%emt 0:00:07]} d5 {[%emt 0:02:26]} 6. Bb5 {[%emt 0:00:11]} Ne4 {[%emt 0:04:05]} 7. Nxd4 {[%emt 0:01:32]} Bc5 {[%emt 0:09:28]} 8. Nxc6 {[%emt 0:02:25]} Bxf2+ {[%emt 0:00:31]} 9. Kf1 {[%emt 0:06:53]} bxc6 {[%emt 0:00:58]} 10. Bxc6+ {[%emt 0:00:21]} Bd7 {[%emt 0:00:37]} 11. Bxa8 {[%emt 0:00:36]} Bb5+ {[%emt 0:00:43]} 12. Qd3 {[%emt 0:01:27]} Bxd3+ {[%emt 0:04:43]} 13. cxd3 {[%emt 0:00:12]} Qxa8 {[%emt 0:00:34]} 14. dxe4 {[%emt 0:00:23]} Bd4 {[%emt 0:00:47]} 15. Nc3 {[%emt 0:02:17]} dxe4 {[%emt 0:01:57]} 16. Bf4 {[%emt 0:04:48]} Qb7 {[%emt 0:03:07]} 17. Rd1 {[%emt 0:03:30]} c5 {[%emt 0:00:54]} 18. Ne2 {[%emt 0:02:23]} Qxb2 {[%emt 0:02:39]} 19. Nxd4 {[%emt 0:00:19]} cxd4 {[%emt 0:00:29]} 20. a4 {[%emt 0:02:18]} e3 {[%emt 0:00:51]} 0-1

[Event "57th Biel Festival ATO 2024"]
[Site "Biel"]
[Date "2024.07.24"]
[Round "8.41"]
[White "Weihs, David"]
[Black "Materia, Mario"]
[Result "1/2-1/2"]
[ECO "C50"]
[WhiteElo "1733"]
[BlackElo "1590"]
[Annotator "NA RC"]
[PlyCount "35"]
[EventDate "2024.07.03"]
[EventType "swiss"]
[EventCountry "SUI"]
[SourceTitle "playchess.com"]
[Source "ChessBase"]
[SourceQuality "1"]
[TimeControl "40/5400+30:1800+30"]

1. e4 {[%emt 0:00:38]} e5 {[%emt 0:00:13]} 2. Nc3 {[%emt 0:00:02]} Nc6 {[%emt 0:00:08]} 3. Bc4 {[%emt 0:00:03]} Nf6 {[%emt 0:00:17]} 4. d3 {[%emt 0:00:05]} Bc5 {[%emt 0:00:53]} 5. Bg5 {[%emt 0:01:18]} d6 {[%emt 0:02:11]} 6. Nf3 {[%emt 0:03:35]} Na5 {[%emt 0:04:38]} 7. Bb3 {[%emt 0:02:16]} Nxb3 {[%emt 0:00:42]} 8. axb3 {[%emt 0:00:06]} a6 {[%emt 0:02:06]} 9. h3 {[%emt 0:03:53]} h6 {[%emt 0:01:17]} 10. Be3 {[%emt 0:02:39]} Bxe3 {[%emt 0:03:29]} 11. fxe3 {[%emt 0:00:06]} O-O {[%emt 0:00:33]} 12. O-O {[%emt 0:00:17]} Re8 {[%emt 0:04:04]} 13. Qe1 {[%emt 0:04:10]} d5 {[%emt 0:00:49]} 14. exd5 {[%emt 0:06:45]} Nh5 {[%emt 0:03:24]} 15. Kh2 {[%emt 0:15:15]} Nf4 {[%emt 0:05:49]} 16. Qf2 {[%emt 0:13:36]} Ng6 {[%emt 0:01:19]} 17. Nh4 {[%emt 0:02:12]} Nxh4 {[%emt 0:03:16]} 18. e4 {[%emt 0:00:31]} 1/2-1/2

[Event "57th Biel Festival ATO 2024"]
[Site "Biel"]
[Date "2024.07.24"]
[Round "8.44"]
[White "Cho, Yeonhee"]
[Black "Settegrana, Miro"]
[Result "1-0"]
[ECO "B13"]
[WhiteElo "1686"]
[BlackElo "1532"]
[Annotator "NA RC"]
[PlyCount "22"]
[EventDate "2024.07.03"]
[EventType "swiss"]
[EventCountry "SUI"]
[SourceTitle "playchess.com"]
[Source "ChessBase"]
[SourceQuality "1"]
[TimeControl "40/5400+30:1800+30"]

1. e4 {[%emt 0:00:04]} c6 {[%emt 0:04:11]} 2. d4 {[%emt 0:00:13]} d5 {[%emt 0:00:11]} 3. exd5 {[%emt 0:00:19]} cxd5 {[%emt 0:00:12]} 4. Bd3 {[%emt 0:00:07]} Nc6 {[%emt 0:00:38]} 5. c3 {[%emt 0:00:09]} Nf6 {[%emt 0:00:36]} 6. h3 {[%emt 0:00:12]} e6 {[%emt 0:00:21]} 7. Bf4 {[%emt 0:00:20]} Bd6 {[%emt 0:00:28]} 8. Bxd6 {[%emt 0:00:18]} Qxd6 {[%emt 0:00:04]} 9. Nf3 {[%emt 0:00:24]} O-O {[%emt 0:01:12]} 10. Rf1 {[%emt 0:00:55]} Bd7 {[%emt 0:00:48]} 11. Ne5 {[%emt 0:04:51]} Rfd8 {[%emt 0:06:44]} 1-0

[Event "57th Biel Festival ATO 2024"]
[Site "Biel"]
[Date "2024.07.24"]
[Round "8.48"]
[White "Huber, Ruth"]
[Black "Spaeti, Kurt"]
[Result "0-1"]
[ECO "D11"]
[WhiteElo "1612"]
[BlackElo "1804"]
[Annotator "NA"]
[PlyCount "80"]
[EventDate "2024.07.03"]
[EventType "swiss"]
[EventCountry "SUI"]
[SourceTitle "playchess.com"]
[Source "ChessBase"]
[SourceQuality "1"]
[TimeControl "40/5400+30:1800+30"]

1. Nf3 {[%emt 0:00:32]} d5 {[%emt 0:00:12]} 2. g3 {[%emt 0:00:29]} Nf6 {[%emt 0:00:28]} 3. Bg2 {[%emt 0:00:12]} Bf5 {[%emt 0:01:34]} 4. O-O {[%emt 0:01:53]} e6 {[%emt 0:00:23]} 5. c4 {[%emt 0:00:16]} c6 {[%emt 0:01:06]} 6. cxd5 {[%emt 0:01:42]} exd5 {[%emt 0:06:14]} 7. d4 {[%emt 0:01:05]} Nbd7 {[%emt 0:02:12]} 8. a3 {[%emt 0:01:44]} Be7 {[%emt 0:01:28]} 9. b4 {[%emt 0:02:34]} a6 {[%emt 0:06:21]} 10. Nc3 {[%emt 0:02:19]} O-O {[%emt 0:03:49]} 11. Bg5 {[%emt 0:05:03]} Qc7 {[%emt 0:07:53]} 12. Bxf6 {[%emt 0:02:42]} Bxf6 {[%emt 0:05:23]} 13. e3 {[%emt 0:00:49]} Rfe8 {[%emt 0:05:17]} 14. Rc1 {[%emt 0:02:37]} Qd6 {[%emt 0:06:26]} 15. Re1 {[%emt 0:03:50]} Re7 {[%emt 0:12:34]} 16. Na4 {[%emt 0:06:09]} a5 {[%emt 0:11:34]} 17. Qd2 {[%emt 0:10:57]} axb4 {[%emt 0:01:13]} 18. axb4 {[%emt 0:01:05]} Rxa4 {[%emt 0:00:43]} 19. Ra1 {[%emt 0:02:45]} b5 {[%emt 0:02:01]} 20. Rec1 {[%emt 0:01:13]} Nb6 {[%emt 0:00:32]} 21. Bf1 {[%emt 0:03:32]} Rea7 {[%emt 0:03:54]} 22. Qe1 {[%emt 0:02:39]} Rxa1 {[%emt 0:03:24]} 23. Rxa1 {[%emt 0:00:13]} Ra4 {[%emt 0:00:59]} 24. Qc3 {[%emt 0:06:01]} Rxb4 {[%emt 0:04:45]} 25. Nd2 {[%emt 0:02:57]} Ra4 {[%emt 0:01:12]} 26. Rc1 {[%emt 0:12:50]} Bd7 {[%emt 0:02:13]} 27. Nb3 {[%emt 0:02:26]} Qb4 {[%emt 0:02:43]} 28. Qc5 {[%emt 0:03:56]} Nc4 {[%emt 0:01:49]} 29. Qxb4 {[%emt 0:02:28]} Rxb4 {[%emt 0:00:25]} 30. Nc5 {[%emt 0:00:10]} Bf5 {[%emt 0:01:01]} 31. Na6 {[%emt 0:02:01]} Rb1 {[%emt 0:01:53]} 32. Rxb1 {[%emt 0:03:27]} Bxb1 {[%emt 0:00:00]} 33. Nb4 {[%emt 0:00:07]} Na5 {[%emt 0:00:07]} 34. Bg2 {[%emt 0:01:41]} Be7 {[%emt 0:01:04]} 35. Na6 {[%emt 0:00:13]} b4 {[%emt 0:00:21]} 36. Nxb4 {[%emt 0:02:26]} Bxb4 {[%emt 0:00:06]} 37. Bh3 {[%emt 0:00:07]} Kf8 {[%emt 0:00:32]} 38. Kf1 {[%emt 0:01:39]} Bd3+ {[%emt 0:00:20]} 39. Kg2 {[%emt 0:00:02]} Ke7 {[%emt 0:00:34]} 40. Kf3 {[%emt 0:01:07]} Nc4 {[%emt 0:00:43]} 0-1

[Event "57th Biel Festival ATO 2024"]
[Site "Biel"]
[Date "2024.07.25"]
[Round "9.2"]
[White "Jud, Marc"]
[Black "Noh, Jinwoo"]
[Result "0-1"]
[ECO "D37"]
[WhiteElo "1925"]
[BlackElo "1824"]
[Annotator "RC"]
[PlyCount "78"]
[EventDate "2024.07.03"]
[EventType "swiss"]
[EventCountry "SUI"]
[SourceTitle "playchess.com"]
[Source "ChessBase"]
[SourceQuality "1"]
[TimeControl "40/5400+30:1800+30"]

1. d4 {[%emt 0:00:07]} Nf6 {[%emt 0:00:31]} 2. Nf3 {[%emt 0:00:10]} d5 {[%emt 0:00:11]} 3. e3 {[%emt 0:01:37]} e6 {[%emt 0:03:02]} 4. c4 {[%emt 0:01:00]} Be7 {[%emt 0:00:57]} 5. Nc3 {[%emt 0:01:02]} O-O {[%emt 0:03:35]} 6. Bd3 {[%emt 0:00:20]} a6 {[%emt 0:01:14]} 7. O-O {[%emt 0:00:49]} dxc4 {[%emt 0:00:31]} 8. Bxc4 {[%emt 0:00:10]} b5 {[%emt 0:00:39]} 9. Bd3 {[%emt 0:00:22]} Bb7 {[%emt 0:02:24]} 10. Qc2 {[%emt 0:00:56]} c5 {[%emt 0:06:22]} 11. dxc5 {[%emt 0:01:19]} Bxc5 {[%emt 0:00:54]} 12. Ne4 {[%emt 0:02:22]} Bxe4 {[%emt 0:04:27]} 13. Bxe4 {[%emt 0:00:14]} Nxe4 {[%emt 0:00:10]} 14. Qxe4 {[%emt 0:00:09]} Nd7 {[%emt 0:00:46]} 15. b3 {[%emt 0:05:02]} Nf6 {[%emt 0:02:58]} 16. Qc2 {[%emt 0:01:06]} Rc8 {[%emt 0:01:42]} 17. Qe2 {[%emt 0:00:12]} Qe7 {[%emt 0:05:45]} 18. Bb2 {[%emt 0:02:28]} Ba3 {[%emt 0:00:23]} 19. Rac1 {[%emt 0:02:27]} Nd5 {[%emt 0:01:25]} 20. Nd4 {[%emt 0:02:05]} Bxb2 {[%emt 0:05:11]} 21. Qxb2 {[%emt 0:00:18]} b4 {[%emt 0:02:08]} 22. Ne2 {[%emt 0:01:22]} a5 {[%emt 0:17:44]} 23. Rc2 {[%emt 0:08:22]} Rxc2 {[%emt 0:04:48]} 24. Qxc2 {[%emt 0:00:11]} Nc3 {[%emt 0:01:35]} 25. Rc1 {[%emt 0:07:55]} Rc8 {[%emt 0:01:15]} 26. Kf1 {[%emt 0:01:46]} Qd6 {[%emt 0:00:57]} 27. f4 {[%emt 0:03:21]} g6 {[%emt 0:00:43]} 28. Kf2 {[%emt 0:05:14]} Qd5 {[%emt 0:00:49]} 29. Kf1 {[%emt 0:09:22]} h5 {[%emt 0:00:47]} 30. Nxc3 {[%emt 0:10:12]} Rxc3 {[%emt 0:03:15]} 31. Qd1 {[%emt 0:02:19]} Rd3 {[%emt 0:00:29]} 32. Qe1 {[%emt 0:07:47]} Rd2 {[%emt 0:01:05]} 33. Qg3 {[%emt 0:00:28]} Rxa2 {[%emt 0:01:43]} 34. Kg1 {[%emt 0:02:38]} Rc2 {[%emt 0:01:15]} 35. Re1 {[%emt 0:01:31]} Qxb3 {[%emt 0:01:20]} 36. f5 {[%emt 0:00:17]} exf5 {[%emt 0:00:19]} 37. Qb8+ {[%emt 0:00:35]} Kh7 {[%emt 0:00:14]} 38. Qe8 {[%emt 0:01:34]} Qe6 {[%emt 0:00:34]} 39. Qa4 {[%emt 0:00:32]} Qe4 {[%emt 0:00:08]} 0-1

[Event "57th Biel Festival ATO 2024"]
[Site "Biel"]
[Date "2024.07.25"]
[Round "9.3"]
[White "Wiesmann, Dominique"]
[Black "Szelag, Zuzanna"]
[Result "1/2-1/2"]
[ECO "C28"]
[WhiteElo "1963"]
[BlackElo "1897"]
[Annotator "RC"]
[PlyCount "21"]
[EventDate "2024.07.03"]
[EventType "swiss"]
[EventCountry "SUI"]
[SourceTitle "playchess.com"]
[Source "ChessBase"]
[SourceQuality "1"]
[TimeControl "40/5400+30:1800+30"]

1. e4 {[%emt 0:00:14]} e5 {[%emt 0:00:09]} 2. Nf3 {[%emt 0:00:12]} Nc6 {[%emt 0:00:19]} 3. Bc4 {[%emt 0:00:18]} Nf6 {[%emt 0:00:52]} 4. Nc3 {[%emt 0:02:49]} Bb4 {[%emt 0:01:45]} 5. d3 {[%emt 0:01:06]} d6 {[%emt 0:01:40]} 6. O-O {[%emt 0:01:23]} Bxc3 {[%emt 0:01:20]} 7. bxc3 {[%emt 0:00:12]} Na5 {[%emt 0:00:53]} 8. Bb3 {[%emt 0:00:28]} Nxb3 {[%emt 0:00:07]} 9. axb3 {[%emt 0:00:06]} Bg4 {[%emt 0:01:22]} 10. h3 {[%emt 0:00:35]} Bh5 {[%emt 0:00:19]} 11. c4 {[%emt 0:00:38]} 1/2-1/2

[Event "57th Biel Festival ATO 2024"]
[Site "Biel"]
[Date "2024.07.25"]
[Round "9.4"]
[White "Titov, Dmitrii"]
[Black "Kulikov, Mikhail L"]
[Result "0-1"]
[ECO "D05"]
[WhiteElo "1899"]
[BlackElo "1954"]
[Annotator "RC"]
[PlyCount "21"]
[EventDate "2024.07.03"]
[EventType "swiss"]
[EventCountry "SUI"]
[SourceTitle "playchess.com"]
[Source "ChessBase"]
[SourceQuality "1"]
[TimeControl "40/5400+30:1800+30"]

1. d4 {[%emt 0:00:06]} Nf6 {[%emt 0:00:27]} 2. Nf3 {[%emt 0:00:15]} e6 {[%emt 0:00:26]} 3. e3 {[%emt 0:00:19]} c5 {[%emt 0:00:50]} 4. c3 {[%emt 0:02:05]} Nc6 {[%emt 0:01:23]} 5. Bd3 {[%emt 0:00:38]} d5 {[%emt 0:02:35]} 6. Nbd2 {[%emt 0:01:32]} Bd6 {[%emt 0:01:26]} 7. Rf1 {[%emt 0:00:20]} O-O {[%emt 0:01:22]} 8. Ne5 {[%emt 0:02:17]} Re8 {[%emt 0:04:33]} 9. h3 {[%emt 0:03:59]} Kf8 {[%emt 1:14:19]} 10. h4 {[%emt 1:15:32]} h6 {[%emt 0:00:00]} 11. h5 {[%emt 0:00:00]} 0-1